Cogmind - Beta 11 @@@ ROGUE MODE // 2022.03.24 @ 18:27:54 Player: Fleshy Vegetable Bird Result: Destroyed by D-53 Grenadier with Mini Grenade Launcher Performance ------------- Evolutions (0) 0 Regions Visited (2) 400 Robots Destroyed (36) 180 Value Destroyed (642) 642 Prototype IDs (3) 60 Alien Tech Used (0) 0 Bonus (59) 59 TOTAL SCORE: 1341 Bonus ------- High Alert Combat Kills 59 Cogmind --------- Core Integrity 0/250 Matter 241/300 Energy 265/265 System Corruption 4% Temperature Cool (0) Movement Walking (190) Ox1 Location -10/Mines Parts ------- > --- POWER (1) -------- Improved Ion Engine > --- PROPULSION (2) --- Aluminum Leg Aluminum Leg > --- UTILITY (2) ------ Large Storage Unit > --- WEAPON (2) ------- Light Cannon Rocket Launcher > --- INVENTORY (15) --- Improved Ion Engine Wheel High-capacity Storage Unit Improved Terrain Scanner Terrain Scan Processor Hacking Suite EM Shotgun EM Shotgun Medium Laser Medium Laser Medium Laser Light Cannon Grenade Launcher Rocket Launcher Mining Laser Peak State ------------ > --- POWER ------------ Improved Ion Engine > --- PROPULSION ------- Aluminum Leg Aluminum Leg > --- UTILITY ---------- Large Storage Unit > --- WEAPON ----------- Light Cannon Rocket Launcher > --- INVENTORY -------- Improved Ion Engine Wheel High-capacity Storage Unit Improved Terrain Scanner Terrain Scan Processor Hacking Suite EM Shotgun EM Shotgun Medium Laser Medium Laser Medium Laser Light Cannon Grenade Launcher Rocket Launcher Mining Laser [Rating: 10] Favorites ----------- Power Ion Engine Engine Ion Engine Propulsion Aluminum Leg Leg Aluminum Leg Wheel Wheel Utility Small Storage Unit Storage Small Storage Unit Weapon Medium Laser Energy Gun Medium Laser Ballistic Gun Light Assault Rifle Ballistic Cannon Light Cannon Launcher Rocket Launcher Build | -11 -10 -10 ------- Run | Scr Mat Min Slots Evolved . | . . . Power . | . . . Propulsion . | . . . Utility . | . . . Weapon . | . . . Parts Attached 27 | 8 17 2 Power 3 | 1 2 . Engine 3 | 1 2 . Core . | . . . Reactor . | . . . Propulsion 9 | 4 5 . Treads . | . . . Leg 2 | . 2 . Wheel 7 | 4 3 . Hover . | . . . Flight . | . . . Utility 2 | 1 1 . Device . | . . . Storage 2 | 1 1 . Processor . | . . . Hackware . | . . . Protection . | . . . Artifact . | . . . Weapon 13 | 2 9 2 Energy Gun 7 | 1 6 . Energy Cannon . | . . . Ballistic Gun 1 | 1 . . Ballistic Cannon 1 | . . 1 Launcher 4 | . 3 1 Special Weapon . | . . . Impact Weapon . | . . . Slashing Weapon . | . . . Piercing Weapon . | . . . Special Melee Weapon . | . . . Unidentified Prototypes . | . . . Parts Lost 7 | . 7 . Power . | . . . Propulsion 5 | . 5 . Utility . | . . . Weapon 2 | . 2 . Highest Loss Streak 3 | . 3 . To Critical Strikes . | . . . Average Slot Usage (%) 82 | . 81 85 Engine 14 | . 14 14 Leg 17 | . 12 28 Wheel 8 | . 13 . Storage 14 | . 14 14 Energy Gun 16 | . 23 1 Ballistic Cannon 4 | . . 13 Launcher 6 | . 2 13 Naked Turns . | . . . Heaviest Build 34 | 13 31 34 Greatest Support 32 | 32 20 20 Greatest Overweight (x) 4 | . 4 1 Average Overweight (x) . | . . 1 Largest Inventory Capacity 15 | 8 15 15 Average Capacity 10 | 7 9 15 Most Carried 15 | 7 15 15 Average Carried 9 | 3 7 15 Final Capacity 15 | 8 15 15 Final Carried 15 | 7 15 15 Class Distribution -------------------- 100% | Mutant Dominant Class ---------------- Mutant | -10/Materials Mutant | -10/Mines Resources | -11 -10 -10 ----------- Run | Scr Mat Min Matter Collected 564 | 302 189 73 Remotely . | . . . Salvage Created 836 | 178 658 . Parts 59 | 16 43 . Haulers Intercepted 1 | . 1 . Recyclers Shooed 1 | . 1 . Parts Field Recycled . | . . . Retrieved Matter . | . . . Parts Self-Destructed . | . . . Prevented . | . . . Kills | -11 -10 -10 ------- Run | Scr Mat Min Combat Hostiles Destroyed 18 | . 18 . Guns 7 | . 7 . AOE 11 | . 11 . Classes Destroyed 9 | 3 6 . Worker 3 | 2 1 . Builder 3 | . 3 . Tunneler 5 | 4 1 . Hauler 1 | . 1 . Recycler 2 | 1 1 . Operator 1 | . 1 . Watcher 3 | . 3 . Swarmer 6 | . 6 . Grunt 12 | . 12 . Best Kill Streak 5 | 4 5 . Combat Bots Only 5 | . 5 . Max Kills in Single Turn 3 | 1 3 . Gunslinging . | . . . Exploded 2 | . 2 . Melee . | . . . Uniques/NPCs Destroyed . | . . . Combat | -11 -10 -10 -------- Run | Scr Mat Min Damage Taken 781 | . 693 88 Core 258 | . 221 37 Absorbed by Shields . | . . . Core Remaining (%) 100 | 100 . . Volleys Fired 109 | 22 82 5 Largest 2 | 2 2 1 Hottest 100 | 70 100 35 Shots Fired 184 | 44 135 5 Gun 166 | 44 122 . Cannon 5 | . . 5 Launcher 13 | . 13 . Special . | . . . Kinetic 30 | 22 3 5 Thermal 141 | 22 119 . Explosive 13 | . 13 . Electromagnetic . | . . . Robot Hit Streak 8 | 5 8 3 Robot Miss Streak 7 | 3 7 2 Penetration Max . | . . . Secondary Targets . | . . . Shots Hit Robots 107 | 22 82 3 Core Hits 57 | 10 46 1 Critical Kills . | . . . Critical Parts Destroyed . | . . . Critical Strikes 10 | 1 9 . Burn 10 | 1 9 . Melee Attacks . | . . . Impact . | . . . Slashing . | . . . Piercing . | . . . Sneak Attacks . | . . . Combat Hostiles . | . . . Follow-up Attacks . | . . . Damage Inflicted 2006 | 222 1727 57 Guns 1152 | 222 930 . Cannons 57 | . . 57 Explosions 797 | . 797 . Melee . | . . . Ramming . | . . . Kinetic 155 | 98 . 57 Thermal 1054 | 124 930 . Explosive 797 | . 797 . Electromagnetic . | . . . Impact . | . . . Slashing . | . . . Piercing . | . . . Highest Corruption 4 | . 4 4 Average Corruption 3 | . 3 4 Corruption Purged . | . . . Corruption Blocked . | . . . Effects 7 | . . 7 Message Errors 2 | . . 2 Matter Fused 1 | . . 1 Heat Flow Errors 1 | . . 1 Data Loss (minor) 1 | . . 1 Data Loss (major) 1 | . . 1 Alerts 1 | . . 1 Overload Shots . | . . . Overflow Damage 39 | . 39 . Projectiles . | . . . Explosions 39 | . 39 . Melee . | . . . Knockbacks 1 | . . 1 Impact . | . . . Kinetic 1 | . . 1 Secondary . | . . . Self-Inflicted Damage 135 | . 135 . Shots 3 | . 3 . Rammed . | . . . Targets Rammed 1 | . . 1 Kicked 1 | . . 1 Crushed . | . . . Highest Temperature 304 | 90 304 168 Average Temperature 82 | 42 92 87 Received Heat Transfer 270 | . 270 . Effects 2 | . 2 . Energy Bleed 1 | . 1 . Interference 1 | . 1 . Siege Activations . | . . . Robots Corrupted . | . . . Combat Hostiles . | . . . Parts Fried . | . . . Impact Corruptions . | . . . Robots Melted . | . . . Combat Hostiles . | . . . Parts Melted 5 | 1 4 . Heat Transferred 3802 | 444 3358 . Parts Sabotaged . | . . . Parts Stolen . | . . . Parts Stripped . | . . . Power Chain Reactions . | . . . Missiles Intercepted . | . . . Alert | -11 -10 -10 ------- Run | Scr Mat Min Peak Influence 652 | 35 652 232 Initial 232 | . 22 232 Average 293 | 15 390 196 Maximum Alert Level 2 | . 2 1 Low Security (%) 30 | 100 23 17 Level 1 35 | . 19 82 Level 2 34 | . 57 . Level 3 . | . . . Level 4 . | . . . Level 5 . | . . . High Security . | . . . Max Security . | . . . Squads Dispatched 3 | . 3 . Investigation 2 | . 2 . Extermination . | . . . Reinforcement 1 | . 1 . Assault . | . . . Garrison . | . . . Intercept . | . . . Searches Triggered . | . . . Construction Impeded . | . . . Haulers Reinforced . | . . . Active Scanning Responses . | . . . Cargo Convoy Interrupts . | . . . Stealth | -11 -10 -10 --------- Run | Scr Mat Min Distress Signals 1 | . 1 . Communications Jammed . | . . . Distress Signals . | . . . Times Spotted 41 | . 33 8 Peak Tracking Total 5 | . 5 5 Tactical Retreats 2 | . 1 1 Traps | -11 -10 -10 ------- Run | Scr Mat Min Traps Triggered 4 | . 4 . Indirectly . | . . . Trap Hack Attempts . | . . . Triggered . | . . . Disarmed . | . . . Reprogrammed . | . . . Reused . | . . . Traps Extracted . | . . . Installed . | . . . Triggered . | . . . Machines | -11 -10 -10 ---------- Run | Scr Mat Min Machines Disabled 3 | . 3 . Max in Single Turn 2 | . 2 . Machines Sabotaged . | . . . Garrisons Compromised . | . . . Overloaded Fab Kills . | . . . Hacking | -11 -10 -10 --------- Run | Scr Mat Min Machines Accessed 7 | . 7 . Terminals 7 | . 7 . Fabricators . | . . . Repair Stations . | . . . Recycling Units . | . . . Scanalyzers . | . . . Garrison Access . | . . . Total Hacks 17 | . 17 . Successful 10 | . 10 . Failed 7 | . 7 . Catastrophic 3 | . 3 . Database Lockouts . | . . . Manual 16 | . 16 . Terminals 17 | . 17 . Fabricators . | . . . Repair Stations . | . . . Recycling Units . | . . . Scanalyzers . | . . . Garrison Access . | . . . Terminal Hacks 2 | . 2 . Prototype ID Bank 1 | . 1 . Terminal Index 1 | . 1 . Fabricator Hacks . | . . . Repair Station Hacks . | . . . Recycling Unit Hacks . | . . . Scanalyzer . | . . . Garrison Access Hacks . | . . . Unauthorized Hacks 8 | . 8 . Terminals 8 | . 8 . Track 2 | . 2 . Botnet 5 | . 5 . Operators 1 | . 1 . Fabricators . | . . . Repair Stations . | . . . Recycling Units . | . . . Scanalyzers . | . . . Garrison Access . | . . . Data Cores Recovered . | . . . Used . | . . . Hacking Detections 7 | . 7 . Full Trace Events . | . . . Feedback Events . | . . . Feedback Blocked . | . . . Robot Schematics Acquired . | . . . Robots Built . | . . . Authchips . | . . . Time . | . . . Total Robot Build Rating . | . . . Part Schematics Acquired . | . . . Parts Built . | . . . Authchips . | . . . Time . | . . . Total Part Build Rating . | . . . Parts Repaired . | . . . Time . | . . . Parts Recycled . | . . . Recycled Matter . | . . . Retrieved Matter . | . . . Retrieved Components . | . . . Parts Scanalyzed . | . . . Part Schematics Acquired . | . . . Parts Damaged . | . . . Bothacking | -11 -10 -10 ------------ Run | Scr Mat Min Used RIF Installer . | . . . Robots Hacked . | . . . Non-combat . | . . . Combat . | . . . Robot Hacks Applied . | . . . Relay Couplers Released . | . . . Fabnet Peak Effective % . | . . . Robots Rewired . | . . . Allies Hacked . | . . . Hacks Repelled . | . . . Allies | -11 -10 -10 -------- Run | Scr Mat Min Total Allies . | . . . Largest Group . | . . . Highest-Rated Group . | . . . Highest-Rated Ally . | . . . Total Orders . | . . . Ally Attacks . | . . . Total Damage . | . . . Kills . | . . . Allies Corrupted . | . . . Allies Melted . | . . . Intel | -11 -10 -10 ------- Run | Scr Mat Min Robot Analysis Total . | . . . Derelict Logs Recovered 1 | . . 1 Drone Launches . | . . . Drone Recoveries . | . . . Exploration | -11 -10 -10 ------------- Run | Scr Mat Min Turns Passed 1694 | 189 1020 485 Spaces Moved 1014 | 113 665 236 Core 14 | 6 8 . Treads . | . . . Legs 492 | . 256 236 Wheels 508 | 107 401 . Hover . | . . . Flight . | . . . Fastest Speed 50 | 50 80 190 Average Speed 125 | 91 108 190 Slowest Speed 250 | 100 250 190 Overloaded Moves . | . . . Propulsion Burnouts . | . . . Robots Hopped . | . . . Cave-ins Triggered . | . . . Exploration Rate (%) 44 | 6 87 40 Regions Visited 2 Branch Regions 1 Pre-discovered Areas . | . . . Known Exits Taken . | . . . Unknown Exits Taken 2 | 1 1 . Scrap Searched 1 | . . 1 Spaces Dug . | . . . Terrain Destroyed 109 | . 109 . Melee . | . . . Projectile . | . . . AOE 109 | . 109 . Terrain Rammed . | . . . Walls Destroyed . | . . . Machines Disabled . | . . . Actions | -11 -10 -10 --------- Run | Scr Mat Min Total 1253 | 159 828 266 Wait 58 | . 36 22 Move 1012 | 112 664 236 Hop . | . . . Pick Up 37 | 15 22 . Fast Attach . | . . . Attach 15 | 7 8 . Detach . | . . . Swap 12 | 1 9 2 Drop 9 | 2 7 . Fire 109 | 22 82 5 Melee . | . . . Ram . | . . . Kick 1 | . . 1 Crush . | . . . Escape Stasis . | . . . Rewire . | . . . Trap . | . . . Miscellaneous . | . . . Route ------- -11/Scrapyard -10/Materials (discovered 4 exits: [*Mat x2] / [*Min x2]) -10/Mines (discovered 1 exit: [*Mat]) History --------- Turn | Location | Event 11 | -11/Scrapyard | Discovered new exit (range 16) 190 | -11/Scrapyard | Entered Materials 285 | -10/Materials | Discovered new exit (range 12) 313 | -10/Materials | Build established: Mutant 451 | -10/Materials | Discovered new exit (range 16) 633 | -10/Materials | Core integrity fell below 50% 669 | -10/Materials | Lost 3 parts (2n1w) 746 | -10/Materials | Discovered new exit (range 16) 955 | -10/Materials | Core integrity fell below 20% 1026 | -10/Materials | Discovered new exit (range 16) 1210 | -10/Materials | Entered Mines 1497 | -10/Mines | Discovered new exit (range 9) 1647 | -10/Mines | Assembled infested the area 1652 | -10/Mines | Assisted by a Guerilla fighting off Assembled 1695 | -10/Mines | Destroyed by D-53 Grenadier with Mini Grenade Launcher Last Messages --------------- 01671_ as-26737 suffers critical hit (Destroy). 01671_ as-26737 destroyed. 01671_ as-04278 suffers critical hit (Destroy). 01671_ as-04278 knocked back. 01672_ as-22101 knocked back. 01675_ HV Slug penetrates as-04278. 01675_ as-04278 suffers critical hit (Destroy). 01675_ as-04278 destroyed. 01675_ HV Slug penetrates Earth. 01677_ HV Slug penetrates as-22101. 01677_ as-22101 destroyed. 01677_ Penetrated by HV Slug. 01678_ Acquired 2 matter. 01680_ Kicked K-01 Serf. 01689_ Acquired 12 matter. 01692_ Acquired 20 matter. 01693_ YY-AGS(h) system terminally corrupted. 01693_ C-30 ARC bursts open, deploying its payload. 01693_ D-53 Grenadier unfolds itself. 01694_ Acquired 4 matter. Map ----- +----------------------------------------------------+ | ?????????????????????????????????????????????????? | | ?????????????????????????????????????????????????? | | ?????????????????????????????????????????????????? | | ?????????????????????????????????????????????????? | | ?????????????????????????????????????????????????? | | ?????????????????????????????????????????????????? | | ?????????????????????????????????????????????????? | | ?????????????????????????????????????????????????? | | ?????????????????????????????????????????????????? | | ?????????????????????????????????????????????????? | | ?????????????????????????????????????????????????? | | ?????????????????????????????????????????????????? | | ?????????????????????????????????????????????????? | | ?????????????????????????????????????????????????? | | ?????????????????????????????????????????????????? | | ?????????????????????????????????????????????????? | | ?????????????????????????????????????????????????? | | ?????????????????????????????????????????????????? | | ?????????????????????????????????????????????????? | | ?????????????????????????????????????????????????? | | ?????????????????????????????????????????????????? | | ?????????????????????????????????????????????????? | | ?????????????????????#?????###???????????????????? | | ????????????????????##%### ######??????????????? | | ????????????????????#%%a!% d % #??????????????? | | ???????????????????######@ ##### #??????????????? | | ??????????????????## ######????# #??????????????? | | ??????????????????# ##???????# #??????????????? | | ??????????????????# ####????# #??####????????? | | ??????????????????# #????# #### ##???????? | | ??????????????????# #????# ## ##??????? | | ??????????????????# ##???## #??????? | | ?????????????????## ###???## #??????? | | ?????????????????# ######## """ ##??????? | | ?????????????????# + """ ##???????? | | ?????????????????## + """ ##????????? | | ??????????????????# # ## # ##????????? | | ??????????????????## ## ## ## ##???????? | | ??#####????????????##### ## ### ##??????? | | ?## ##??????????????# ## #?### ##?????? | | ## #??????????????# ## ######### #?????? | | # """ #####??????????# ## #??## #?????? | | # < """ ! #??????????# ## #### #???## ##?????? | | ## """ ##!#??????????# ## #### #????#####??????? | | ?## ## #????####### ## ##??????????????? | | ??## ### #????# #### #??????????????? | | ???## ##?# #????# ## #### #???????####???? | | ????###???# ###### ## ##?????## ##### | | ??????????# ## ###???# ## | | ??????????# ### ##??# """ | +----------------------------------------------------+ Best States ------------- Heat Dissipation 25 Energy Generation 12 Energy Capacity 265 Matter Stores 300 Matter Capacity 300 Sight Range 16 Terrain Scan Density 10 Evasion (%) 55 Item Schematics ----------------- None Robot Schematics ------------------ None Fabricated ------------ Nothing Alien Tech Used ----------------- None Achievements -------------- None Challenges ------------ None Game ------ Seed UltimatePhasingHumpback Manual? 0 Play Time 00:14:26 Cumulative 312.0 hours Start 2022.03.24 @ 18:11:46 End 2022.03.24 @ 18:27:54 Sessions 2 Manual Loads 0 Difficulty Rogue Special Mode None Game No. 350 Rogue 350 Adventurer 0 Explorer 0 Win Type - Total 6 Types 3/1/1/1/0/0/0/0/0 Lore% 63 Gallery% 78 Achievement% 66 Wizard Run 0 Options --------- ASCII 0 Keyboard 0 Movement Numpad Keybinds 0 Fullscreen 1 Font 16/Terminus Map View 75x55 Tactical HUD 1 Map Filters NONE Filters NONE Steam 1 RUN: 0f98616c-ea5d-4868-a417-4949274034c5